bitfinex-derivatives/quotes_BTCF0:USTF0_20230901
["timestamp","ask_amount","ask_price","bid_price","bid_amount"]
[1693549528971,0.30202212,26037.0,26036.0,1.60125302]
[1693549529172,0.30202212,26037.0,26036.0,1.65594209]
[1693549529375,0.24547375,26037.0,26036.0,1.65594209]
[1693549529681,0.24547375,26037.0,26036.0,1.60125302]
[1693549530277,0.35671119,26037.0,26036.0,1.60125302]
[1693549530871,0.30202212,26037.0,26036.0,1.60125302]
[1693549531073,0.30202212,26037.0,26036.0,1.65594209]
[1693549531671,0.30202212,26037.0,26036.0,1.60125302]
[1693549533681,0.30202212,26037.0,26036.0,1.65594209]
[1693549534180,0.30202212,26037.0,26036.0,1.60125302]
[1693549534380,0.30203633,26037.0,26036.0,1.6012603]
[1693549535085,0.3567254,26037.0,26036.0,1.6012603]
[1693549536283,0.30203633,26037.0,26036.0,1.6012603]
[1693549539985,0.3567254,26037.0,26036.0,1.6012603]
[1693549541080,0.30203633,26037.0,26036.0,1.6012603]
[1693549542980,0.30203633,26037.0,26036.0,1.65594937]
[1693549544892,0.24548796,26037.0,26036.0,1.71249775]
[1693549548288,0.24548796,26037.0,26036.0,1.75091562]
[1693549549586,0.05340894,26037.0,26036.0,1.75091562]
[1693549550502,0.05340894,26037.0,26036.0,1.635662]
[1693549550794,0.05340894,26037.0,26036.0,1.75091562]
[1693549553301,0.05340894,26037.0,26036.0,1.635662]
[1693549558300,0.05340894,26037.0,26036.0,1.75091562]
[1693549558492,0.05340894,26037.0,26036.0,1.635662]
[1693549559902,0.05340894,26037.0,26036.0,1.71250517]
[1693549559903,0.24548796,26037.0,26036.0,1.71250517]
[1693549563109,0.24548796,26037.0,26036.0,1.71234944]
[1693549566813,0.05340894,26037.0,26036.0,1.63550627]
[1693549568013,0.10995731,26037.0,26036.0,1.63550627]
[1693549568713,0.05340894,26037.0,26036.0,1.63550627]
[1693549571519,0.05340894,26037.0,26036.0,1.75075989]
[1693549575029,0.05340894,26037.0,26036.0,1.71234691]
[1693549576128,0.24548796,26037.0,26036.0,1.71234691]
[1693549576326,0.05340894,26037.0,26036.0,1.71234691]
[1693549576530,0.24548796,26037.0,26036.0,1.71234691]
[1693549581932,0.05340894,26037.0,26036.0,1.63550627]
[1693549583534,0.05340894,26037.0,26036.0,1.71235116]
[1693549584333,0.05340894,26037.0,26036.0,0.60548234]
[1693549584538,0.24548796,26037.0,26036.0,0.60548234]
[1693549585932,0.05340894,26037.0,26036.0,0.60548234]
[1693549586619,0.05340894,26037.0,26036.0,0.52863745]
[1693549588133,0.24548796,26037.0,26036.0,0.47208907]
[1693549588330,0.30203633,26037.0,26036.0,0.49424899]
[1693549588927,0.3567254,26037.0,26036.0,0.49424899]
[1693549589525,0.30203633,26037.0,26036.0,0.49424899]
[1693549589732,0.30203633,26037.0,26036.0,1.60115527]
[1693549590232,0.30203633,26037.0,26036.0,1.65584434]
[1693549590825,0.10995731,26037.0,26036.0,1.57899535]
[1693549594744,0.30203496,26037.0,26036.0,1.57899535]
[1693549596040,0.30203262,26037.0,26036.0,1.57899535]
[1693549597037,0.30203262,26037.0,26036.0,1.65583866]
[1693549597444,0.30203262,26037.0,26036.0,1.60114959]
[1693549597739,0.30203262,26037.0,26036.0,1.65583866]
[1693549597925,0.30203262,26037.0,26036.0,1.60114959]
[1693549598130,0.30203262,26037.0,26036.0,1.65583866]
[1693549600042,0.30203262,26037.0,26036.0,1.57899535]
[1693549600539,0.30203262,26037.0,26036.0,1.52430628]
[1693549600734,0.30203262,26037.0,26036.0,1.57899535]
[1693549603139,0.30203262,26037.0,26036.0,1.52430628]
[1693549603340,0.24548425,26037.0,26036.0,1.57899535]
[1693549604044,0.24548425,26037.0,26036.0,1.52430628]
[1693549604840,0.30203262,26037.0,26036.0,1.52430628]
[1693549605944,0.30203262,26037.0,26036.0,1.60114959]
[1693549606641,0.24548425,26037.0,26036.0,1.65583866]
[1693549607145,0.24548425,26037.0,26036.0,1.71238704]
[1693549609445,0.24548425,26037.0,26036.0,0.54893238]
[1693549609838,0.30203262,26037.0,26036.0,0.49424331]
[1693549612143,0.30203262,26037.0,26036.0,0.4174]
[1693549614642,0.30200627,26037.0,26036.0,0.4174]
[1693549614838,0.30200627,26037.0,26036.0,1.52433213]
[1693549618747,0.36052534,26037.0,26036.0,1.52433213]
[1693549619250,0.36052534,26037.0,26036.0,1.60116481]
[1693549620246,0.30583627,26037.0,26036.0,1.60116481]
[1693549620641,0.36052534,26037.0,26036.0,1.60116481]
[1693549621248,0.30583627,26037.0,26036.0,1.60116481]
[1693549621752,0.30583627,26037.0,26036.0,1.52433213]
[1693549625653,0.36052534,26037.0,26036.0,1.52433213]
[1693549625855,0.30583627,26037.0,26036.0,1.52433213]
[1693549627052,0.72123627,26037.0,26036.0,1.10893213]
[1693549627352,0.52918731,26037.0,26036.0,1.10893213]
[1693549627658,0.58387638,26037.0,26036.0,1.10893213]
[1693549627862,0.60387638,26037.0,26036.0,1.10893213]
[1693549628266,0.60387638,26037.0,26036.0,1.10043727]
[1693549628565,0.60387638,26037.0,26029.0,0.11524902]
[1693549628566,0.83046744,26036.0,26029.0,0.11524902]
[1693549628757,0.83046744,26036.0,26026.0,0.3531817]
[1693549628758,0.4154,26030.0,26026.0,0.15371626]
[1693549629062,0.4154,26027.0,26026.0,0.15371626]
[1693549629466,0.4154,26027.0,26025.0,0.56911626]
[1693549629660,0.52663744,26026.0,26025.0,0.56911626]
[1693549629861,0.4154,26026.0,26025.0,0.82343621]
[1693549630166,0.4154,26026.0,26025.0,0.4154]
[1693549630560,0.52663744,26026.0,26025.0,0.4154]
[1693549630760,0.47194837,26026.0,26025.0,0.4154]
[1693549631162,0.52663744,26026.0,26025.0,0.4154]
[1693549632069,0.53263744,26026.0,26025.0,0.4754]
[1693549635165,0.55263744,26026.0,26025.0,0.4754]
[1693549636971,0.55263744,26026.0,26025.0,0.06]
[1693549637275,0.53263744,26026.0,26025.0,0.06]
[1693549637470,0.55263744,26026.0,26025.0,0.06]
[1693549638868,0.53263744,26026.0,26025.0,0.06]
[1693549639077,0.55263744,26026.0,26025.0,0.06]
[1693549642677,0.49794837,26026.0,26025.0,0.06]
[1693549642883,0.47794837,26026.0,26025.0,0.06]
[1693549643070,0.49794837,26026.0,26025.0,0.06]
[1693549643468,0.47794837,26026.0,26025.0,0.06]
[1693549643777,0.53263744,26026.0,26025.0,0.06]
[1693549644177,0.56268315,26026.0,26025.0,0.06]
[1693549648979,0.50799408,26026.0,26025.0,0.11468907]
[1693549649179,0.50799408,26026.0,26025.0,0.06]
[1693549651081,0.50799408,26026.0,26025.0,0.11468907]
[1693549651877,0.45144571,26026.0,26025.0,0.17123745]
[1693549652285,0.50799408,26026.0,26025.0,0.06]
[1693549656691,0.50799408,26026.0,26025.0,0.11468907]
[1693549656883,0.50799408,26026.0,26025.0,0.06]
[1693549662382,0.50799408,26026.0,26025.0,0.11468907]
[1693549662587,0.50799408,26026.0,26025.0,0.06]
[1693549666481,0.50799408,26026.0,26025.0,0.11468907]
[1693549666684,0.50799408,26026.0,26025.0,0.06]
[1693549669196,0.56268315,26026.0,26025.0,0.06]
[1693549671895,0.50799408,26026.0,26025.0,0.06]
[1693549672492,0.50799408,26026.0,26025.0,0.21310595]
[1693549672692,0.50799408,26026.0,26025.0,0.46743131]
[1693549674097,0.50799408,26026.0,26025.0,0.5057078]
[1693549674794,0.56268315,26026.0,26025.0,0.31432536]
[1693549676202,0.50799408,26026.0,26025.0,0.31432536]
[1693549676403,0.50799408,26026.0,26025.0,0.06]
[1693549676900,0.56268315,26026.0,26025.0,0.06]
[1693549686911,0.62104842,26026.0,26025.0,0.06]
[1693549693315,0.62104842,26026.0,26025.0,0.06384]
[1693549697727,0.56635935,26026.0,26025.0,0.06384]
[1693549698524,0.62104842,26026.0,26025.0,0.06384]
[1693549700235,0.50981098,26026.0,26025.0,0.08]
[1693549700532,0.45144571,26026.0,26025.0,0.08]
[1693549700834,0.45144571,26026.0,26025.0,0.30649191]
[1693549701333,0.56268315,26026.0,26025.0,0.17525446]
[1693549701633,0.50799408,26026.0,26025.0,0.06]
[1693549702533,0.56268315,26026.0,26025.0,0.06]
[1693549706939,0.56268315,26026.0,26025.0,0.06384]
[1693549709438,0.50799408,26026.0,26025.0,0.12038838]
[1693549709627,0.50799408,26026.0,26025.0,0.17525446]
[1693549711033,0.56268315,26026.0,26025.0,0.17525446]
[1693549716242,0.56268315,26026.0,26025.0,0.06]
[1693549719549,0.6193847,26026.0,26025.0,0.06]
[1693549722746,0.56469563,26026.0,26025.0,0.06]
[1693549722946,0.6193847,26026.0,26025.0,0.06]
[1693549724555,0.6193847,26026.0,26025.0,0.17525446]
[1693549725356,0.56469563,26026.0,26025.0,0.17525446]
[1693549725558,0.6193847,26026.0,26025.0,0.17525446]
[1693549725756,0.56469563,26026.0,26025.0,0.17525446]
[1693549729651,0.56469563,26026.0,26025.0,0.11852907]
[1693549729850,0.56469563,26026.0,26025.0,0.17530823]
[1693549732559,0.6193847,26026.0,26025.0,0.17530823]
[1693549732962,0.56469563,26026.0,26025.0,0.17530823]
[1693549733354,0.56469563,26026.0,26025.0,0.2299973]
[1693549733558,0.56469563,26026.0,26025.0,0.17530823]
[1693549734055,0.6193847,26026.0,26025.0,0.17530823]
[1693549734457,0.50814726,26026.0,26025.0,0.17530823]
[1693549735160,0.50814726,26026.0,26025.0,0.2299973]
[1693549735359,0.56469563,26026.0,26025.0,0.17530823]
[1693549736763,0.56469563,26026.0,26025.0,0.2299973]
[1693549736965,0.56469563,26026.0,26025.0,0.17530823]
[1693549738261,0.50814726,26026.0,26025.0,0.2499973]
[1693549738456,0.50814726,26026.0,26025.0,0.2299973]
[1693549738666,0.50814726,26026.0,26025.0,0.2499973]
[1693549738866,0.50814726,26026.0,26025.0,0.30654568]
[1693549739867,0.56469563,26026.0,26025.0,0.2499973]
[1693549740061,0.50814726,26026.0,26025.0,0.30654568]
[1693549740263,0.50814726,26026.0,26025.0,0.29038568]
[1693549740566,0.50814726,26026.0,26025.0,0.31038568]
[1693549740861,0.56469563,26026.0,26025.0,0.31038568]
[1693549741262,0.56469563,26026.0,26025.0,0.2499973]
[1693549743168,0.50814726,26026.0,26025.0,0.30654568]
[1693549743566,0.50814726,26026.0,26025.0,0.30654473]
[1693549743761,0.50814726,26026.0,26025.0,0.19530728]
[1693549743968,0.6193847,26026.0,26025.0,0.17530728]
[1693549744270,0.56469563,26026.0,26025.0,0.19530728]
[1693549744973,0.56469563,26026.0,26025.0,0.17530728]
[1693549745773,0.56469563,26026.0,26025.0,0.22999635]
[1693549746370,0.50814726,26026.0,26025.0,0.22999635]
[1693549747171,0.50814726,26026.0,26025.0,0.17530728]
[1693549747371,0.50814726,26026.0,26025.0,0.22999635]
[1693549748676,0.56469563,26026.0,26025.0,0.22999635]
[1693549748873,0.56469563,26026.0,26025.0,0.17530728]
[1693549749674,0.56469563,26026.0,26025.0,0.22999635]
[1693549749874,0.56469563,26026.0,26025.0,0.17530728]
[1693549750970,0.56469563,26026.0,26025.0,0.22999635]
[1693549751171,0.56469563,26026.0,26025.0,0.17530728]
[1693549753077,0.56469563,26026.0,26025.0,0.22999635]
[1693549753273,0.56469563,26026.0,26025.0,0.17530728]
[1693549754974,0.6193847,26026.0,26025.0,0.17530728]
[1693549755685,0.56469563,26026.0,26025.0,0.17530728]
[1693549756084,0.56469563,26026.0,26025.0,0.22999635]
[1693549756385,0.56469563,26026.0,26025.0,0.17530728]
[1693549756886,0.56469563,26026.0,26025.0,0.22999635]
[1693549757488,0.56469563,26026.0,26025.0,0.17530728]
[1693549761393,0.56469563,26026.0,26025.0,0.06]
[1693549761790,0.56469563,26026.0,26025.0,0.17530728]
[1693549761993,0.6193847,26026.0,26025.0,0.17530728]
[1693549762291,0.56469563,26026.0,26025.0,0.17530728]
[1693549763184,0.6193847,26026.0,26025.0,0.17530728]
[1693549765395,0.56469563,26026.0,26025.0,0.17530728]
[1693549765594,0.6193847,26026.0,26025.0,0.17530728]
[1693549767097,0.56469563,26026.0,26025.0,0.17530728]
[1693549767298,0.6193847,26026.0,26025.0,0.17530728]
[1693549768293,0.56469563,26026.0,26025.0,0.17530728]
[1693549769595,0.6193847,26026.0,26025.0,0.17530728]
[1693549769797,0.6193847,26026.0,26025.0,0.13688451]
[1693549769999,0.56469563,26026.0,26025.0,0.06]
[1693549770295,0.6193847,26026.0,26025.0,0.13688395]
[1693549770498,0.56469563,26026.0,26025.0,0.13688395]
[1693549771197,0.6193847,26026.0,26025.0,0.13688395]
[1693549775803,0.56469563,26026.0,26025.0,0.13688395]
[1693549776103,0.6193847,26026.0,26025.0,0.13688395]
[1693549776804,0.6193847,26026.0,26025.0,0.17530728]
[1693549777403,0.56469563,26026.0,26025.0,0.17530728]
[1693549777703,0.6193847,26026.0,26025.0,0.17530728]
[1693549783107,0.6193847,26026.0,26025.0,0.06384]
[1693549783809,0.6193847,26026.0,26025.0,0.14072063]
[1693549784009,0.81034296,26026.0,26025.0,0.12872063]
[1693549784204,0.80934296,26026.0,26025.0,0.11672063]
[1693549784717,0.80934296,26026.0,26025.0,0.11288063]
[1693549786406,0.75465389,26026.0,26025.0,0.11288063]
[1693549787110,0.80934296,26026.0,26025.0,0.11288063]
[1693549790616,0.6173847,26026.0,26025.0,0.11288063]
[1693549791013,0.80934296,26026.0,26025.0,0.11288063]
[1693549791216,0.6173847,26026.0,26025.0,0.11288063]
[1693549791914,0.80934296,26026.0,26025.0,0.11288063]
[1693549800021,0.6173847,26026.0,26025.0,0.11288063]
[1693549802328,0.80934296,26026.0,26025.0,0.11288063]
[1693549807831,0.80934296,26026.0,26025.0,0.036]
[1693549808130,0.6173847,26026.0,26025.0,0.036]
[1693549814642,0.8092666,26026.0,26025.0,0.036]
[1693549815343,0.6373847,26026.0,26025.0,0.036]
[1693549820046,0.6173847,26026.0,26025.0,0.036]
[1693549820345,0.6373847,26026.0,26025.0,0.036]
[1693549821341,0.6173847,26026.0,26025.0,0.036]
[1693549821547,0.6373847,26026.0,26025.0,0.036]
[1693549825146,0.6173847,26026.0,26025.0,0.036]
[1693549825342,0.6373847,26026.0,26025.0,0.036]
[1693549825744,0.6173847,26026.0,26025.0,0.036]
[1693549826045,0.6373847,26026.0,26025.0,0.036]
[1693549826246,0.6173847,26026.0,26025.0,0.036]
[1693549834755,0.56269563,26026.0,26025.0,0.036]
[1693549835257,0.80928981,26026.0,26025.0,0.036]
[1693549836953,0.80928981,26026.0,26025.0,0.03984]
[1693549837156,0.80928981,26026.0,26025.0,0.036]
[1693549840858,0.80928981,26026.0,26025.0,0.03984]
[1693549841259,0.6173847,26026.0,26025.0,0.03984]
[1693549841558,0.80932052,26026.0,26025.0,0.03984]
[1693549841759,0.80932052,26026.0,26025.0,0.036]
[1693549842858,0.80932884,26026.0,26025.0,0.036]
[1693549845162,0.6173847,26026.0,26025.0,0.036]
[1693549849866,0.09074726,26026.0,26025.0,0.58263745]
[1693549850069,0.28273563,26026.0,26025.0,0.58263745]
[1693549850269,0.22603408,26026.0,26025.0,0.58263745]
[1693549850468,0.03404571,26026.0,26025.0,0.65951808]
[1693549850668,0.03404571,26026.0,26025.0,0.68468346]
[1693549850976,0.03404571,26026.0,26025.0,0.65951808]
[1693549852573,0.03404571,26026.0,26025.0,0.66335808]
[1693549852966,0.03404571,26026.0,26025.0,0.65951808]
[1693549858582,0.03404571,26026.0,26025.0,0.58263745]
[1693549860182,0.03404571,26026.0,26025.0,0.58647745]
[1693549860787,0.09059408,26026.0,26025.0,0.45524]
[1693549861094,0.09059408,26026.0,26025.0,0.4514]
[1693549861584,0.14528315,26026.0,26025.0,0.4514]
[1693549862582,0.56068315,26026.0,26025.0,0.036]
[1693549863384,0.58068315,26026.0,26025.0,0.036]
[1693549863883,0.77256287,26026.0,26025.0,0.036]
[1693549864088,0.58068315,26026.0,26025.0,0.036]
[1693549868690,0.58068315,26026.0,26025.0,0.01208512]
[1693549870789,0.63749247,26026.0,26025.0,0.01208512]
[1693549882093,0.52625503,26026.0,26023.0,0.00384]
[1693549882295,0.61099519,26024.0,26023.0,0.00384]
[1693549882703,0.72223263,26024.0,26023.0,0.00384]
[1693549883094,0.71839263,26024.0,26023.0,0.00384]
[1693549883293,0.71839263,26024.0,26023.0,0.03484]
[1693549883494,0.71839263,26024.0,26023.0,0.06084]
[1693549883797,0.00384,26020.0,26017.0,0.07678615]
[1693549884001,0.00384,26020.0,26016.0,0.1649]
[1693549884002,0.00384,26017.0,26016.0,0.1649]
[1693549884201,0.41924,26017.0,26013.0,0.07678615]
[1693549884404,0.00384,26017.0,26014.0,0.05654838]
[1693549884600,0.4154,26015.0,26014.0,0.02]
[1693549884804,0.4154,26015.0,26014.0,0.13123745]
[1693549885400,0.4154,26015.0,26014.0,0.07654838]
[1693549885899,0.4154,26016.0,26014.0,0.54663745]
[1693549886097,0.4154,26016.0,26015.0,0.47194838]
[1693549886301,0.4154,26016.0,26015.0,0.49194838]
[1693549886495,0.4154,26016.0,26015.0,0.54663745]
[1693549887204,0.4194,26016.0,26015.0,0.54663745]
[1693549887997,0.4234,26016.0,26015.0,0.54663745]
[1693549889510,0.008,26016.0,26015.0,0.54663745]
[1693549890399,0.008,26016.0,26015.0,0.6234236]
[1693549892008,0.47994837,26016.0,26015.0,0.02]
[1693549893497,0.53463744,26016.0,26015.0,0.02]
[1693549893802,0.47994837,26016.0,26015.0,0.02]
[1693549896307,0.47994837,26016.0,26014.0,0.1615]
[1693549896308,0.00384,26015.0,26014.0,0.1615]
[1693549896619,0.47578837,26015.0,26012.0,0.1563]
[1693549896808,0.16774,26015.0,26013.0,0.1635]
[1693549897116,0.4154,26015.0,26014.0,0.4154]
[1693549897816,0.4154,26015.0,26014.0,0.52663745]
[1693549898308,0.4194,26015.0,26014.0,0.52663745]
[1693549898605,0.4234,26015.0,26014.0,0.52663745]
[1693549902213,0.44724,26015.0,26013.0,0.1345]
[1693549902418,0.4154,26014.0,26013.0,0.1345]
[1693549902604,0.4354,26014.0,26013.0,0.1345]
[1693549902809,0.54663744,26014.0,26013.0,0.1345]
[1693549903410,0.55063744,26014.0,26013.0,0.1345]
[1693549903918,0.55063744,26014.0,26010.0,0.07678615]
[1693549904114,0.4154,26011.0,26010.0,0.07678615]
[1693549904720,0.52663744,26011.0,26009.0,0.11517923]
[1693549904916,0.4154,26010.0,26009.0,0.05468907]
[1693549905107,0.31922805,26010.0,26009.0,0.07468907]
[1693549905314,0.31922805,26010.0,26008.0,0.15357231]
[1693549905513,0.1563,26013.0,26009.0,0.1588]
[1693549905815,0.1563,26013.0,26010.0,0.17147608]
[1693549905816,0.008,26011.0,26010.0,0.17147608]
[1693549906014,0.4234,26011.0,26010.0,0.17147608]
[1693549906218,0.47408907,26011.0,26010.0,0.1149277]
[1693549906415,0.4154,26011.0,26010.0,0.1149277]
[1693549907109,0.52663744,26011.0,26010.0,0.1149277]
[1693549908012,0.53063744,26011.0,26010.0,0.1149277]
[1693549909320,0.53463744,26011.0,26010.0,0.1149277]
[1693549910920,0.11507744,26010.0,26007.0,0.00578229]
[1693549911223,0.41924,26008.0,26005.0,0.1149277]
[1693549911423,0.4154,26005.0,26004.0,0.1149277]
[1693549911732,0.00384,26006.0,26005.0,0.1614]
[1693549912025,0.47578837,26006.0,26005.0,0.1814]
[1693549912215,0.41924,26006.0,26005.0,0.1814]
[1693549912524,0.53047744,26006.0,26005.0,0.1614]
[1693549913220,0.47978837,26006.0,26005.0,0.1814]
[1693549913917,0.47792907,26006.0,26005.0,0.1814]
[1693549914224,0.42324,26006.0,26005.0,0.1814]
[1693549914723,0.42324,26006.0,26003.0,0.06086224]
[1693549915028,0.41924,26004.0,26002.0,0.1511]
[1693549915215,0.41924,26003.0,26002.0,0.1498881]
[1693549915411,0.53047744,26003.0,26002.0,0.1498881]
[1693549916320,0.53447744,26003.0,26002.0,0.1498881]
[1693549916522,0.47594837,26003.0,26002.0,0.1498881]
[1693549916715,0.4194,26003.0,26002.0,0.1498881]
[1693549916920,0.4234,26003.0,26002.0,0.1698881]
[1693549917121,0.4234,26003.0,26002.0,0.28112555]
[1693549917523,0.34644422,26003.0,26002.0,0.28112555]
[1693549918122,0.34644422,26003.0,26002.0,0.22643648]
[1693549918623,0.34644422,26003.0,26002.0,0.28112555]
[1693549918829,0.34644422,26003.0,26002.0,0.22643648]
[1693549919326,0.34644422,26003.0,26002.0,0.28112555]
[1693549920821,0.44594215,26006.0,26002.0,0.69652555]
[1693549921026,0.4154,26006.0,26005.0,0.4154]
[1693549921228,0.4154,26006.0,26005.0,0.46077015]
[1693549921432,0.4154,26006.0,26005.0,0.54663745]
[1693549921631,0.4154,26006.0,26005.0,0.70543745]
[1693549922019,0.4234,26006.0,26005.0,0.70843745]
[1693549922622,0.4234,26006.0,26005.0,0.71143745]
[1693549924726,0.4154,26009.0,26005.0,1.11949533]
[1693549924925,0.4154,26009.0,26007.0,0.43688192]
[1693549925122,0.4154,26009.0,26007.0,0.45688192]
[1693549925319,0.4154,26009.0,26008.0,0.11123745]
[1693549925834,0.4194,26009.0,26008.0,0.13123745]
[1693549926219,0.4234,26009.0,26008.0,0.13123745]
[1693549926525,0.4234,26009.0,26008.0,0.11123745]
[1693549926526,0.4194,26009.0,26008.0,0.11123745]
[1693549926838,0.4234,26009.0,26008.0,0.14523745]
[1693549927031,0.4234,26009.0,26008.0,0.56063745]
[1693549928827,0.008,26009.0,26008.0,0.56063745]
[1693549929831,0.4154,26012.0,26008.0,0.96867896]
[1693549930138,0.4154,26014.0,26011.0,0.4154]
[1693549930335,0.4154,26014.0,26008.0,0.21035059]
[1693549930336,0.4154,26014.0,26013.0,0.4154]
[1693549930637,0.4154,26014.0,26013.0,0.47008907]
[1693549931846,0.4154,26014.0,26013.0,0.52663745]
[1693549932134,0.4494,26014.0,26013.0,0.52863745]
[1693549933331,0.4494,26014.0,26013.0,0.54863745]
[1693549935626,0.4494,26014.0,26013.0,0.13323745]
[1693549936937,0.4494,26014.0,26013.0,0.54863745]
[1693549937139,0.4494,26014.0,26013.0,0.52863745]
[1693549937335,0.4494,26014.0,26013.0,0.54863745]
[1693549938037,0.4494,26014.0,26013.0,0.52863745]
[1693549938241,0.4494,26014.0,26013.0,0.54863745]
[1693549938441,0.4494,26014.0,26013.0,0.52863745]
[1693549939037,0.4494,26014.0,26013.0,0.47208907]
[1693549940338,0.4494,26014.0,26013.0,0.52863745]
[1693549940842,0.50594837,26014.0,26013.0,0.52863745]
[1693549941144,0.50594837,26014.0,26013.0,0.47208907]
[1693549941339,0.4494,26014.0,26013.0,0.52863745]
[1693549941644,0.034,26014.0,26013.0,0.52863745]
[1693549943853,0.034,26014.0,26013.0,0.47208907]
[1693549944052,0.034,26014.0,26013.0,0.52863745]
[1693549945056,0.09054837,26014.0,26013.0,0.47208907]
[1693549946550,0.034,26014.0,26013.0,0.47208907]
[1693549946946,0.034,26014.0,26013.0,0.52863745]
[1693549952851,0.034,26014.0,26013.0,0.47208907]
[1693549954458,0.034,26014.0,26013.0,0.52863745]
[1693549958854,0.034,26014.0,26013.0,0.54863745]
[1693549961363,0.034,26014.0,26013.0,0.52863745]
[1693549961565,0.034,26014.0,26013.0,0.54863745]
[1693549961863,0.034,26014.0,26013.0,0.52863745]
[1693549971169,0.09054837,26014.0,26013.0,0.47208907]
[1693549973066,0.52594837,26014.0,26013.0,0.4174]
[1693549973568,0.58063744,26014.0,26013.0,0.4174]
[1693549974663,0.56063744,26014.0,26013.0,0.4174]
[1693549974864,0.58063744,26014.0,26013.0,0.53273035]
[1693549975264,0.56063744,26014.0,26013.0,0.53273035]
[1693549975472,0.52594837,26014.0,26013.0,0.53273035]
[1693549975769,0.50594837,26014.0,26013.0,0.53273035]
[1693549976070,0.56063744,26014.0,26013.0,0.53273035]
[1693549976370,0.50594837,26014.0,26013.0,0.53273035]
[1693549977772,0.50594837,26014.0,26013.0,0.58741942]
[1693549978272,0.50594837,26014.0,26013.0,0.53273035]
[1693549979171,0.56063744,26014.0,26013.0,0.53273035]
[1693549979566,0.50594837,26014.0,26013.0,0.53273035]
[1693549979859,0.56063744,26014.0,26013.0,0.53273035]
[1693549980265,0.50594837,26014.0,26013.0,0.53273035]
[1693549980869,0.56063744,26014.0,26013.0,0.53273035]
[1693549981074,0.56063744,26014.0,26013.0,0.53279188]
[1693549981272,0.50594837,26014.0,26013.0,0.53279188]
[1693549981471,0.56063744,26014.0,26013.0,0.53279188]
[1693549982364,0.50594837,26014.0,26013.0,0.53279188]
[1693549982564,0.56063744,26014.0,26013.0,0.53279188]
[1693549982970,0.50594837,26014.0,26013.0,0.53279188]
[1693549983673,0.56063744,26014.0,26013.0,0.53279188]
[1693549983873,0.50594837,26014.0,26013.0,0.53279188]
[1693549984671,0.50594837,26014.0,26013.0,0.4174]
[1693549987480,0.4494,26014.0,26013.0,0.4174]
[1693549987972,0.4494,26014.0,26013.0,0.47208907]
[1693549988277,0.034,26014.0,26013.0,0.60748095]
[1693549988775,0.034,26014.0,26013.0,0.66402933]
[1693549989861,0.034,26014.0,26013.0,0.64402933]
[1693549990176,0.034,26014.0,26013.0,0.66402933]
[1693549991074,0.034,26014.0,26013.0,0.64402933]
[1693549991271,0.034,26014.0,26013.0,0.66402933]
[1693549991974,0.034,26014.0,26013.0,0.64402933]
[1693549996173,0.034,26014.0,26013.0,0.58748095]
[1693549996576,0.034,26014.0,26013.0,0.64402933]
[1693549998771,0.034,26014.0,26013.0,0.64399322]
[1693550003785,0.034,26014.0,26013.0,0.58744484]
[1693550005483,0.09054837,26014.0,26013.0,0.58744484]
[1693550007984,0.034,26014.0,26013.0,0.64399322]
[1693550025594,0.034,26014.0,26013.0,0.66399322]
[1693550028005,0.034,26014.0,26013.0,0.64399322]
[1693550028196,0.034,26014.0,26013.0,0.66399322]
[1693550029298,0.034,26014.0,26013.0,0.54863745]
[1693550031696,0.034,26014.0,26013.0,0.52863745]
[1693550032413,0.09054837,26014.0,26013.0,0.4174]
[1693550032808,0.09054837,26014.0,26013.0,0.53276852]
[1693550032809,0.16523744,26014.0,26013.0,0.53276852]
[1693550033307,0.11054837,26014.0,26013.0,0.53276852]
[1693550033711,0.16523744,26014.0,26013.0,0.53276852]
[1693550034014,0.11054837,26014.0,26013.0,0.53276852]
[1693550034900,0.11054837,26014.0,26013.0,0.5893169]
[1693550035309,0.11054837,26014.0,26013.0,0.53276852]
[1693550035709,0.16523744,26014.0,26013.0,0.53276852]
[1693550035909,0.11054837,26014.0,26013.0,0.53276852]
[1693550036104,0.09054837,26014.0,26013.0,0.53276852]
[1693550036312,0.11054837,26014.0,26013.0,0.53276852]
[1693550036711,0.11054837,26014.0,26013.0,0.58745759]
[1693550036917,0.11054837,26014.0,26013.0,0.53276852]
[1693550040208,0.11054837,26014.0,26013.0,0.58745759]
[1693550040418,0.11054837,26014.0,26013.0,0.53276852]
[1693550040819,0.11054837,26014.0,26013.0,0.58745759]
[1693550041220,0.11054837,26014.0,26013.0,0.53276852]
[1693550041416,0.09054837,26014.0,26013.0,0.58745759]
[1693550041819,0.09054837,26014.0,26013.0,0.53276852]
[1693550042323,0.09054837,26014.0,26013.0,0.4174]
[1693550042628,0.09054837,26014.0,26013.0,0.47208907]
[1693550042828,0.09054837,26014.0,26013.0,0.4174]
[1693550046928,0.09054837,26014.0,26013.0,0.53276852]
[1693550047824,0.09054837,26014.0,26013.0,0.58745759]
[1693550048029,0.14523744,26014.0,26013.0,0.53276852]
[1693550048730,0.09054837,26014.0,26013.0,0.53276852]
[1693550049131,0.14523744,26014.0,26013.0,0.53276852]
[1693550049332,0.09054837,26014.0,26013.0,0.5893169]
[1693550049534,0.034,26014.0,26013.0,0.5893169]
[1693550050033,0.034,26014.0,26013.0,0.64400597]
[1693550050435,0.034,26014.0,26013.0,0.5893169]
[1693550050834,0.034,26014.0,26013.0,0.64400597]
[1693550074550,0.034,26014.0,26013.0,0.52863745]
[1693550074950,0.034,26014.0,26013.0,0.64399732]
[1693550100175,0.034,26014.0,26013.0,0.52863745]
[1693550100374,0.1883,26014.0,26013.0,0.52863745]
[1693550107187,0.1883,26014.0,26013.0,0.64401381]
[1693550110085,0.1883,26014.0,26013.0,0.52863745]
[1693550112187,0.24484837,26014.0,26013.0,0.4174]
[1693550114794,0.24484837,26014.0,26013.0,0.53277443]
[1693550114984,0.24484837,26014.0,26013.0,0.5874635]
[1693550115185,0.24484837,26014.0,26013.0,0.47208907]
[1693550115491,0.29953744,26014.0,26013.0,0.4174]
[1693550115791,0.24484837,26014.0,26013.0,0.4174]
[1693550117385,0.29953744,26014.0,26013.0,0.4174]
[1693550118196,0.24484837,26014.0,26013.0,0.4174]
[1693550118488,0.29953744,26014.0,26013.0,0.4174]
[1693550118692,0.24484837,26014.0,26013.0,0.4174]
[1693550118989,0.29953744,26014.0,26013.0,0.4174]
[1693550119792,0.1883,26014.0,26013.0,0.4174]
[1693550120888,0.29953744,26014.0,26013.0,0.4174]
[1693550121189,0.24484837,26014.0,26013.0,0.4174]
[1693550124094,0.29953744,26014.0,26013.0,0.4174]
[1693550124295,0.24484837,26014.0,26013.0,0.4174]